bitfinex/quotes_BTCUSD_20250123
["timestamp","ask_amount","ask_price","bid_price","bid_amount"]
[1737654835464,0.04500857,106060.0,106050.0,0.21164229]
[1737654835663,0.04500857,106060.0,106050.0,0.19164229]
[1737654835866,0.13929657,106060.0,106040.0,0.02029925]
[1737654835999,0.23358757,106060.0,106040.0,0.09764654]
[1737654836203,0.094295,106050.0,106040.0,0.00029925]
[1737654836917,0.51646257,106060.0,106040.0,0.00029925]
[1737654837460,0.13630157,106060.0,106040.0,0.09460225]
[1737654837722,0.04200857,106060.0,106040.0,0.28520925]
[1737654837897,0.13629557,106060.0,106040.0,0.33520925]
[1737654838277,0.32486757,106060.0,106040.0,0.09660225]
[1737654838477,0.13629557,106060.0,106040.0,0.14660225]
[1737654838721,0.32486957,106060.0,106040.0,0.14760225]
[1737654839026,0.04200857,106060.0,106040.0,0.14760225]
[1737654839231,0.13629557,106060.0,106040.0,0.00229925]
[1737654839438,0.32486757,106060.0,106040.0,0.00329925]
[1737654839666,0.51345257,106060.0,106040.0,0.00329925]
[1737654840226,0.13629557,106060.0,106040.0,0.00329925]
[1737654840439,0.04200857,106060.0,106040.0,0.35620925]
[1737654840802,0.0271176,106060.0,106050.0,0.21164229]
[1737654841228,0.0271176,106060.0,106050.0,0.26164229]
[1737654842385,0.0271176,106060.0,106050.0,0.26264229]
[1737654843113,0.1214036,106060.0,106050.0,0.001]
[1737654843321,0.34600992,106060.0,106050.0,0.002]
[1737654843516,0.37739182,106060.0,106050.0,0.002]
[1737654843722,1.00159182,106060.0,106050.0,0.002]
[1737654843924,0.267295,106050.0,106040.0,0.00029925]
[1737654844098,0.52571784,106050.0,106040.0,1e-08]
[1737654844301,0.117312,106030.0,106020.0,0.00029925]
[1737654844516,0.21465929,106030.0,106020.0,0.00029925]
[1737654845294,0.094312,106030.0,106020.0,0.00029925]
[1737654845702,0.094312,106030.0,106020.0,0.00129925]
[1737654845703,0.1028078,106030.0,106020.0,0.00129925]
[1737654846920,0.4800748,106030.0,106000.0,0.39744061]
[1737654847146,0.4800748,106030.0,106000.0,0.4947879]
[1737654847147,0.094322,106020.0,106000.0,0.4947879]
[1737654847367,0.282974,106020.0,106000.0,0.09442461]
[1737654847483,0.471626,106020.0,106000.0,0.09442461]
[1737654847693,0.471626,106020.0,106000.0,0.01222146]
[1737654847889,0.09433,106010.0,106000.0,0.01222146]
[1737654848312,0.09433,106010.0,106000.0,0.01322146]
[1737654848516,0.09433,106010.0,106000.0,0.01222146]
[1737654848733,0.09433,106010.0,106000.0,0.01322146]
[1737654849135,0.09433,106010.0,106000.0,0.01222146]
[1737654849364,0.09433,106010.0,106000.0,0.01322146]
[1737654849556,0.471632,106020.0,106000.0,0.01322146]
[1737654849988,0.48671879,106020.0,106000.0,0.01322146]
[1737654850653,0.29806679,106020.0,106000.0,0.03322146]
[1737654850881,0.01508679,106020.0,106010.0,0.09433]
[1737654851096,0.0004958,106030.0,106020.0,0.114321]
[1737654851310,0.0153147,106030.0,106010.0,0.479974]
[1737654851522,0.0004958,106030.0,106010.0,0.618634]
[1737654851743,0.0004958,106030.0,106020.0,0.02]
[1737654852030,0.0948078,106030.0,106020.0,0.02]
[1737654852263,0.0004958,106030.0,106010.0,0.50732029]
[1737654852478,0.094322,106020.0,106000.0,0.31523346]
[1737654852702,0.094322,106020.0,106000.0,0.41258375]
[1737654852915,0.094322,106020.0,106000.0,0.22390675]
[1737654853119,0.094322,106020.0,106000.0,0.41258375]
[1737654853575,0.282967,106020.0,106000.0,0.41258375]
[1737654853790,0.094322,106020.0,106000.0,0.41258475]
[1737654854226,0.282966,106020.0,106010.0,0.002]
[1737654854451,0.39279852,106030.0,106010.0,0.002]
[1737654854665,0.48711652,106030.0,106000.0,0.60126275]
[1737654855096,0.48711352,106030.0,106010.0,0.02]
[1737654855421,0.004,106020.0,106010.0,0.02]
[1737654855920,0.004,106020.0,106000.0,0.65124975]
[1737654855921,0.001,106020.0,106000.0,0.65124975]
[1737654856167,0.001,106020.0,106000.0,0.60124975]
[1737654856316,0.001,106020.0,106000.0,0.65124975]
[1737654856765,0.29847952,106030.0,106010.0,0.02]
[1737654856999,0.29847952,106030.0,106010.0,0.114328]
[1737654857212,0.0014958,106030.0,106020.0,0.114321]
[1737654857545,0.0004958,106030.0,106020.0,0.02]
[1737654857750,0.0004958,106030.0,106010.0,0.58897029]
[1737654857955,0.0004958,106030.0,106020.0,0.02]
[1737654858292,0.0004958,106030.0,106020.0,0.114321]
[1737654858466,0.0004958,106030.0,106020.0,0.02]
[1737654858634,0.0004958,106030.0,106020.0,0.094321]
[1737654858842,0.0004958,106030.0,106010.0,0.61896729]
[1737654859076,0.0004958,106030.0,106020.0,0.094321]
[1737654859389,0.0004958,106030.0,106020.0,0.114321]
[1737654859853,0.0004958,106030.0,106020.0,0.02]
[1737654860052,0.0004958,106030.0,106020.0,0.114321]
[1737654860556,0.0004958,106030.0,106010.0,0.21167129]
[1737654860557,0.2834388,106030.0,106010.0,0.21167129]
[1737654860860,0.4720778,106030.0,106010.0,0.11433]
[1737654861268,0.3777618,106030.0,106000.0,0.70418892]
[1737654861468,0.094324,106020.0,106000.0,0.56286621]
[1737654861613,0.282967,106020.0,106010.0,0.001]
[1737654861813,0.282967,106020.0,106010.0,0.003]
[1737654862261,0.6607158,106030.0,106010.0,0.001]
[1737654862462,0.4720788,106030.0,106010.0,0.09533]
[1737654862665,0.4720788,106030.0,106010.0,0.001]
[1737654862821,0.5663948,106030.0,106010.0,0.001]
[1737654863049,0.094321,106020.0,106000.0,0.56487921]
[1737654863243,0.094321,106020.0,106000.0,0.61587921]
[1737654863425,0.21467729,106010.0,106000.0,0.01552092]
[1737654863828,0.21467729,106010.0,106000.0,0.01252092]
[1737654864259,0.83567729,106010.0,106000.0,0.00078256]
[1737654864462,0.244348,105990.0,105980.0,0.08220315]
[1737654864686,0.76707719,105990.0,105980.0,0.08220315]
[1737654864843,0.91977084,105990.0,105980.0,0.06493372]
[1737654865028,1.00157084,105990.0,105980.0,0.06493372]
[1737654865236,1.00157084,105990.0,105980.0,0.03703782]
[1737654865237,0.60757084,105990.0,105980.0,0.03703782]
[1737654865437,0.65627084,105990.0,105980.0,0.01312072]
[1737654865844,0.377464,105970.0,105940.0,0.02029925]
[1737654866046,0.094384,105950.0,105940.0,0.02029925]
[1737654866246,0.094384,105950.0,105940.0,0.00029925]
[1737654867071,0.394,105950.0,105940.0,0.00029925]
[1737654867306,0.394,105950.0,105940.0,0.00129925]
[1737654867307,0.48887919,105950.0,105940.0,0.00129925]
[1737654867510,0.23606358,105950.0,105940.0,0.00129925]
[1737654867704,0.21522648,105950.0,105940.0,0.00129925]
[1737654869564,0.00049519,105950.0,105940.0,0.21503954]
[1737654870774,0.00029519,105950.0,105940.0,0.41503954]
[1737654870976,0.00029519,105950.0,105940.0,0.46383954]
[1737654871177,0.00029519,105950.0,105940.0,0.54193954]
[1737654871755,0.00029519,105950.0,105940.0,0.53993954]
[1737654872216,0.094348,105990.0,105970.0,0.303089]
[1737654872387,0.094349,105990.0,105970.0,0.11441281]
[1737654872782,0.094349,105990.0,105970.0,0.30314481]
[1737654873200,0.30223258,106000.0,105970.0,0.39749181]
[1737654873402,0.41246042,106000.0,105980.0,0.283069]
[1737654873611,0.01288055,106000.0,105980.0,0.303069]
[1737654873859,0.29590155,106000.0,105980.0,0.303069]
[1737654874058,0.094331,106010.0,105990.0,0.30304]
[1737654874181,0.0001427,106030.0,106000.0,0.20867]
[1737654874385,0.38042799,106030.0,106010.0,0.282986]
[1737654874612,0.188654,106020.0,106000.0,0.02]
[1737654874785,0.188654,106020.0,106000.0,0.114339]
[1737654874786,0.282982,106020.0,106000.0,0.114339]
[1737654874989,0.471638,106020.0,106000.0,0.02]
[1737654875392,0.282995,106010.0,105990.0,0.303036]
[1737654875736,0.47465629,106020.0,106000.0,0.303016]
[1737654875737,0.094326,106020.0,106000.0,0.303016]
[1737654876301,0.282971,106020.0,106000.0,0.303016]
[1737654876677,0.282971,106020.0,106000.0,0.02]
[1737654876794,0.471616,106020.0,106000.0,0.114338]
[1737654876996,0.282971,106020.0,106000.0,0.303015]
[1737654877190,0.188645,106020.0,106000.0,0.114339]
[1737654877505,0.47162,106020.0,106000.0,0.02]
[1737654877704,0.47162,106020.0,106000.0,0.114338]
[1737654877909,0.471625,106020.0,106000.0,0.02]
[1737654879319,0.03503273,106030.0,106010.0,0.02]
[1737654879524,0.01581383,106030.0,106020.0,0.094321]
[1737654880294,0.01581383,106030.0,106020.0,0.114321]
[1737654880470,0.01281383,106030.0,106020.0,0.114321]
[1737654880641,0.0031427,106030.0,106020.0,0.114321]
[1737654881615,0.0011427,106030.0,106020.0,0.02]
[1737654881796,0.0011427,106030.0,106020.0,0.115321]
[1737654882000,0.0011427,106030.0,106020.0,0.021]
[1737654882363,0.0001427,106030.0,106020.0,0.021]
[1737654882749,0.0001427,106030.0,106020.0,0.115321]
[1737654882931,0.0001427,106030.0,106020.0,0.114321]
[1737654883660,0.0001427,106030.0,106020.0,0.115321]
[1737654883832,0.0001427,106030.0,106020.0,0.114321]
[1737654885125,0.0001427,106030.0,106020.0,0.116321]
[1737654885763,0.0001427,106030.0,106020.0,0.022]
[1737654885987,0.0001427,106030.0,106020.0,0.116321]
[1737654886239,0.0001427,106030.0,106020.0,0.022]
[1737654886462,0.0001427,106030.0,106020.0,0.02]
[1737654886663,0.0001427,106030.0,106010.0,0.114324]
[1737654886664,0.4717207,106030.0,106010.0,0.114324]
[1737654886898,0.2830877,106030.0,106000.0,0.62398429]
[1737654887100,0.2830847,106030.0,106010.0,0.302988]
[1737654887565,0.4717207,106030.0,106000.0,0.62398429]
[1737654887783,0.282967,106020.0,106010.0,0.001]
[1737654888184,0.2830867,106030.0,106010.0,0.30399]
[1737654888585,0.2830867,106030.0,106020.0,0.114321]
[1737654888586,0.0001427,106030.0,106020.0,0.114321]
[1737654890101,0.0001427,106030.0,106020.0,0.094321]
[1737654890315,0.2830837,106030.0,106010.0,0.569322]
[1737654890432,0.0001427,106030.0,106020.0,0.02]
[1737654890638,0.0001427,106030.0,106020.0,0.114321]
[1737654891849,0.0001427,106030.0,106020.0,0.02]
[1737654892054,0.0001427,106030.0,106020.0,0.114321]
[1737654893730,0.0001427,106030.0,106020.0,0.02]
[1737654893956,0.0944557,106030.0,106010.0,0.66666729]
[1737654894131,0.0944557,106030.0,106010.0,0.569324]
[1737654894330,0.0001427,106030.0,106020.0,0.094321]
[1737654895432,0.0001427,106030.0,106020.0,0.114321]
[1737654896332,0.0001427,106030.0,106010.0,0.474996]
[1737654896500,0.0001427,106030.0,106010.0,0.66365]
[1737654896698,0.0001427,106030.0,106020.0,0.094321]
[1737654896894,0.0944557,106030.0,106010.0,0.757973]
[1737654897130,0.0001427,106030.0,106020.0,0.094321]
[1737654897425,0.0001427,106030.0,106010.0,0.680273]
[1737654897580,0.2830837,106030.0,106020.0,0.001]
[1737654898104,0.2830837,106030.0,106010.0,0.302973]
[1737654898246,0.094323,106020.0,106000.0,0.641665]
[1737654898484,0.094323,106020.0,106010.0,0.02]
[1737654898892,0.6603637,106030.0,106010.0,0.09433]
[1737654899101,0.094326,106020.0,106000.0,0.491671]
[1737654899300,0.2830887,106030.0,106010.0,0.49165]
[1737654899708,0.0001427,106030.0,106020.0,0.094321]
[1737654900535,0.0001427,106030.0,106020.0,0.114321]
[1737654900788,0.0001427,106030.0,106020.0,0.02]
[1737654901109,0.094321,106020.0,106000.0,0.114336]
[1737654901326,0.282965,106020.0,106010.0,0.02]
[1737654903037,0.09433,106010.0,106000.0,0.001]
[1737654903644,0.117339,106000.0,105990.0,4.981e-05]
[1737654903839,0.21468629,106000.0,105990.0,4.981e-05]
[1737654906438,0.21768629,106000.0,105990.0,4.981e-05]
[1737654906553,1.73413358,106000.0,105990.0,4.981e-05]
[1737654906755,1.81023358,106000.0,105990.0,4.981e-05]
[1737654906957,1.81123358,106000.0,105990.0,4.981e-05]
[1737654907200,0.283101,105970.0,105950.0,0.37952788]
[1737654907457,0.188739,105970.0,105950.0,0.00044049]
[1737654907675,0.094375,105960.0,105950.0,0.00044049]
[1737654908279,0.66358229,105970.0,105950.0,0.00044049]
[1737654908619,0.56920229,105970.0,105950.0,0.09582249]
[1737654908928,0.471855,105970.0,105950.0,0.30359049]
[1737654909353,0.494813,105980.0,105960.0,0.094374]
[1737654909540,0.78088729,105980.0,105960.0,0.094374]
[1737654909670,0.59216029,105980.0,105960.0,0.094374]
[1737654910094,0.283098,105970.0,105950.0,0.49234649]
[1737654910555,0.094366,105970.0,105950.0,0.68110549]
[1737654910718,0.5106062,105980.0,105960.0,0.094375]
[1737654911061,0.094367,105970.0,105950.0,0.49233449]
[1737654911262,0.2831,105970.0,105950.0,0.49233449]
[1737654911409,0.094367,105970.0,105950.0,0.49233449]
[1737654911602,0.094367,105970.0,105950.0,0.49533549]
[1737654911845,0.29589491,105980.0,105960.0,0.303121]
[1737654912043,0.10717191,105980.0,105960.0,0.49187]
[1737654912249,0.29588691,105980.0,105960.0,0.49187]
[1737654912475,0.10717191,105980.0,105960.0,0.49187]
[1737654912664,0.29588691,105980.0,105960.0,0.49187]
[1737654912862,0.50300636,105980.0,105960.0,0.114372]
[1737654913208,0.01280991,105980.0,105970.0,0.164366]
[1737654913411,0.42415,105990.0,105970.0,0.258717]
[1737654913582,0.612857,105990.0,105970.0,0.114361]
[1737654913806,0.801565,105990.0,105970.0,0.114361]
[1737654913994,0.094357,105980.0,105960.0,0.52865629]
[1737654914226,0.188722,105980.0,105960.0,0.11437]
[1737654914399,0.474809,105980.0,105960.0,0.114369]
[1737654914604,0.471809,105980.0,105960.0,0.303119]
[1737654914749,0.377445,105980.0,105960.0,0.114369]
[1737654914949,0.47181,105980.0,105960.0,0.114369]
[1737654915155,0.094366,105970.0,105960.0,0.02]
[1737654915367,0.283102,105970.0,105950.0,0.64232649]
[1737654915566,0.283102,105970.0,105960.0,0.001]
[1737654915767,0.40344929,105970.0,105960.0,0.001]
[1737654916048,1.12724929,105970.0,105960.0,0.001]
[1737654916280,1.22459658,105970.0,105960.0,0.001]
[1737654916454,1.22459658,105970.0,105960.0,0.003]
[1737654916686,1.25123726,105970.0,105960.0,0.003]
[1737654916882,1.25123726,105970.0,105960.0,0.001]
[1737654917086,0.023,105960.0,105950.0,0.00044049]
[1737654917285,0.21472229,105960.0,105950.0,0.00044049]
[1737654917487,0.31206958,105960.0,105950.0,0.00044049]
[1737654917907,0.21472229,105960.0,105950.0,0.00044049]
[1737654918217,0.36472229,105960.0,105950.0,0.00044049]
[1737654918419,1.71702229,105960.0,105950.0,0.00044049]
[1737654918942,1.7468073,105960.0,105950.0,0.00044049]
[1737654919151,0.50434798,105960.0,105950.0,0.00044049]
[1737654919348,0.65299527,105960.0,105900.0,0.61351346]
[1737654919568,0.283239,105920.0,105900.0,0.5320289]
[1737654919919,0.094415,105920.0,105900.0,0.5320289]
[1737654920133,0.094416,105920.0,105910.0,0.094419]
[1737654920343,0.472034,105930.0,105910.0,0.094419]
[1737654920514,0.38056829,105930.0,105910.0,0.283257]
[1737654920868,0.394,105940.0,105920.0,0.208818]
[1737654921088,0.094385,105950.0,105930.0,0.397594]
[1737654921295,0.094394,105940.0,105920.0,0.303213]
[1737654921494,0.19173729,105950.0,105930.0,0.303193]
[1737654921701,0.09734729,105950.0,105940.0,0.094393]
[1737654921903,0.094384,105950.0,105930.0,0.303185]
[1737654922103,0.283154,105950.0,105930.0,0.303185]
[1737654922302,0.283154,105950.0,105930.0,0.491978]
[1737654922638,0.094384,105950.0,105940.0,0.094392]
[1737654922779,0.10634684,105950.0,105940.0,0.094392]
[1737654923135,0.10634684,105950.0,105940.0,0.09453369]
[1737654923440,0.01196284,105950.0,105940.0,0.09453369]
[1737654923848,0.095384,105950.0,105940.0,0.00014169]
[1737654924047,0.29007858,105950.0,105940.0,0.00014169]
[1737654924275,0.28907858,105950.0,105940.0,0.00014169]
[1737654924753,0.61887858,105950.0,105940.0,0.00014169]
[1737654925102,0.52153129,105950.0,105940.0,0.00014169]
[1737654925721,0.52253129,105950.0,105940.0,0.00014169]
[1737654925917,0.52553129,105950.0,105940.0,0.00014169]
[1737654927594,0.52453129,105950.0,105940.0,0.00014169]
[1737654928795,0.52553129,105950.0,105940.0,0.00014169]
[1737654929351,0.3308,105950.0,105940.0,0.09483394]
[1737654929600,0.3308,105950.0,105940.0,0.09583394]
[1737654930092,0.3308,105950.0,105940.0,0.09483394]
[1737654930331,0.3328,105950.0,105940.0,0.09483394]
[1737654930777,0.3328,105950.0,105940.0,0.09583394]
[1737654932097,0.427184,105950.0,105940.0,0.00144094]
[1737654932249,0.427184,105950.0,105940.0,0.09583394]
[1737654932637,0.427184,105950.0,105940.0,0.00144094]
[1737654932996,0.424184,105950.0,105940.0,0.00044094]
[1737654933408,0.52453129,105950.0,105940.0,0.00044094]
[1737654933584,0.52553129,105950.0,105940.0,0.00044094]
[1737654934010,0.60544298,105950.0,105940.0,0.00044094]
[1737654934877,0.52553129,105950.0,105940.0,0.09483394]
[1737654935078,0.428184,105950.0,105940.0,0.09483394]
[1737654935316,0.3338,105950.0,105940.0,0.00044094]
[1737654935519,0.428184,105950.0,105940.0,0.00044094]
[1737654935981,0.54853129,105950.0,105940.0,0.00044094]
[1737654936131,0.64287858,105950.0,105940.0,0.00044094]
[1737654936339,0.79287858,105950.0,105940.0,0.00144094]
[1737654936546,0.94926359,105950.0,105940.0,0.001]
[1737654936747,1.7719,105940.0,105900.0,0.303271]
[1737654936976,0.28324,105920.0,105900.0,0.49262219]
[1737654937129,0.28324,105920.0,105900.0,0.11491919]
[1737654937130,0.47499529,105920.0,105900.0,0.11491919]
[1737654937338,0.094419,105910.0,105900.0,0.00049519]
[1737654938468,0.19176629,105910.0,105900.0,0.00049519]
[1737654939267,0.21476629,105910.0,105900.0,0.00149519]
[1737654939469,0.31211358,105910.0,105900.0,0.00149519]
[1737654940257,0.64191358,105910.0,105900.0,0.00149519]
[1737654940452,0.46211358,105910.0,105900.0,0.00149519]
[1737654940661,0.51753927,105910.0,105900.0,0.00049519]
[1737654940854,0.59863927,105910.0,105900.0,0.00063779]
[1737654941346,0.173,105900.0,105890.0,0.00025947]
[1737654941544,0.43249732,105900.0,105890.0,0.00025947]
[1737654942119,0.094446,105880.0,105870.0,0.00029967]
[1737654942429,0.21479329,105880.0,105870.0,0.00029967]
[1737654942628,0.29439329,105880.0,105870.0,0.00029967]
[1737654942778,0.32103397,105880.0,105870.0,0.00029967]
[1737654942982,0.59616627,105880.0,105870.0,0.00029967]
[1737654943582,0.49881898,105880.0,105870.0,0.00029967]
[1737654943843,0.44739329,105880.0,105870.0,0.00029967]
[1737654943985,0.21779329,105880.0,105870.0,0.00029967]
[1737654944184,0.22079329,105880.0,105870.0,0.00029967]
[1737654944845,0.21779329,105880.0,105870.0,0.00029967]
[1737654945039,0.21479329,105880.0,105870.0,0.00029967]
[1737654945844,0.22379329,105880.0,105870.0,0.00029967]
[1737654946227,0.31750667,105880.0,105870.0,0.00029967]
[1737654946437,0.32550667,105880.0,105870.0,0.00029967]
[1737654946631,0.24192154,105880.0,105870.0,0.00029967]
[1737654946836,0.23992154,105880.0,105870.0,0.00029967]
[1737654947250,0.24192154,105880.0,105870.0,0.00029967]
[1737654947908,0.008,105880.0,105870.0,0.09475467]
[1737654948659,0.01947564,105880.0,105870.0,0.11475467]
[1737654948856,0.01347564,105880.0,105870.0,0.11475467]
[1737654949062,0.01347564,105880.0,105870.0,0.11575467]
[1737654949472,0.01147564,105880.0,105870.0,0.11575467]
[1737654949822,0.424238,105890.0,105880.0,0.114446]
[1737654950639,0.3298,105890.0,105880.0,0.114446]
[1737654951008,0.424237,105890.0,105880.0,0.114446]
[1737654951204,0.3308,105890.0,105880.0,0.114446]
[1737654951403,0.3308,105890.0,105880.0,0.44319329]
[1737654951612,0.25998467,105890.0,105880.0,0.49319329]
[1737654951812,0.26298467,105890.0,105880.0,0.49319329]
[1737654951998,0.26298467,105890.0,105880.0,0.44319329]
[1737654952200,0.26298467,105890.0,105880.0,0.345846]
[1737654952449,0.35672113,105890.0,105870.0,0.47253967]
[1737654952624,0.54260413,105890.0,105870.0,0.49254467]
[1737654952977,0.35372113,105890.0,105880.0,0.003]
[1737654953182,0.25928413,105890.0,105880.0,0.095446]
[1737654953325,0.25928413,105890.0,105880.0,0.094446]
[1737654953569,0.25928413,105890.0,105880.0,0.116446]
[1737654953803,0.25928413,105890.0,105880.0,0.166446]
[1737654954067,0.25928413,105890.0,105880.0,0.316446]
[1737654954467,0.25928413,105890.0,105880.0,0.266446]
[1737654954672,0.25928413,105890.0,105880.0,0.264446]
[1737654954872,0.25928413,105890.0,105880.0,0.41179329]
[1737654955069,0.26228413,105890.0,105880.0,0.45999329]
[1737654955336,0.25928413,105890.0,105880.0,0.53539329]
[1737654955727,0.25928413,105890.0,105880.0,0.53639329]
[1737654955900,0.25928413,105890.0,105880.0,0.51639329]
[1737654956101,0.25928413,105890.0,105880.0,0.389046]
[1737654956341,0.25928413,105890.0,105880.0,0.388046]
[1737654956540,0.25928413,105890.0,105880.0,0.238046]
[1737654956717,0.25928413,105890.0,105880.0,0.238846]
[1737654956934,0.25928413,105890.0,105880.0,0.289846]
[1737654957117,0.25928413,105890.0,105880.0,0.239846]
[1737654957313,0.00029946,105890.0,105880.0,0.289846]
[1737654957556,0.00029946,105890.0,105880.0,0.38619329]
[1737654958072,0.00029946,105890.0,105880.0,0.53619329]
[1737654958575,0.00029946,105890.0,105880.0,0.51619329]
[1737654958776,0.00029946,105890.0,105880.0,0.53419329]
[1737654958940,0.00029946,105890.0,105880.0,0.53519329]
[1737654959138,0.00029946,105890.0,105880.0,0.53419329]
[1737654959346,0.00029946,105890.0,105880.0,0.53519329]
[1737654959546,0.00029946,105890.0,105880.0,0.53719329]
[1737654959942,0.00029946,105890.0,105880.0,0.53619329]
[1737654960155,0.00029946,105890.0,105880.0,0.53719329]
[1737654960691,4.6e-07,105890.0,105880.0,0.53719329]
[1737654960846,4.6e-07,105890.0,105880.0,0.55619329]
[1737654961053,4.6e-07,105890.0,105880.0,0.55419329]
[1737654961237,4.6e-07,105890.0,105880.0,0.58275393]
[1737654961762,0.00049509,105910.0,105900.0,0.164428]
[1737654961934,0.00049509,105910.0,105900.0,0.33917529]
[1737654962763,0.00049509,105910.0,105900.0,0.38707529]
[1737654962962,0.00049509,105910.0,105900.0,0.38807529]
[1737654963773,0.00049509,105910.0,105900.0,0.53807529]
[1737654963974,0.00049509,105910.0,105900.0,0.49017529]
[1737654964178,0.00079455,105910.0,105900.0,0.41277529]
[1737654964402,0.00079455,105910.0,105900.0,0.115428]
[1737654964564,0.09521355,105910.0,105900.0,0.115428]
[1737654964968,0.21556084,105910.0,105900.0,0.001]
[1737654965172,0.47454551,105910.0,105900.0,0.003]
[1737654965377,0.47454551,105910.0,105880.0,0.094442]
[1737654965378,0.52391466,105910.0,105880.0,0.094442]
[1737654965627,0.094437,105890.0,105880.0,0.114442]
[1737654966346,0.66394529,105900.0,105890.0,0.094437]
[1737654966347,0.38063929,105900.0,105890.0,0.094437]
[1737654966696,0.38063929,105900.0,105880.0,0.493205]
[1737654966870,0.56950729,105900.0,105880.0,0.493205]
[1737654967012,0.56950729,105900.0,105880.0,0.097438]
[1737654967013,0.094437,105890.0,105880.0,0.097438]
[1737654967229,0.094437,105890.0,105880.0,0.096446]
[1737654967831,0.2583594,105890.0,105880.0,0.002]
[1737654968033,0.36478429,105890.0,105880.0,0.002]
[1737654968243,0.36478429,105890.0,105870.0,0.00029967]
[1737654968244,0.094446,105880.0,105870.0,0.00029967]
[1737654968455,0.29559329,105880.0,105870.0,0.00029967]
[1737654968666,0.29559329,105880.0,105870.0,0.09475467]
[1737654968864,0.094443,105890.0,105880.0,0.094446]
[1737654969073,0.39507992,105900.0,105890.0,0.094437]
[1737654969381,0.094437,105890.0,105880.0,0.30332]
[1737654969621,0.60049821,105900.0,105880.0,0.30332]
[1737654969958,0.094437,105890.0,105880.0,0.30332]
[1737654970158,0.001,105890.0,105880.0,0.30332]
[1737654970374,0.095437,105890.0,105880.0,0.30332]
[1737654970598,0.001,105890.0,105880.0,0.30332]
[1737654971625,0.41162621,105900.0,105890.0,0.094437]
[1737654971834,0.60349121,105900.0,105880.0,0.472198]
[1737654972040,0.60149121,105900.0,105880.0,0.472198]
[1737654972208,0.19178429,105890.0,105880.0,0.09444]
[1737654972424,0.47811729,105890.0,105870.0,0.28364367]
[1737654972575,0.47611729,105890.0,105870.0,0.28364367]
[1737654972777,0.094446,105880.0,105870.0,0.09474767]
[1737654973031,0.094446,105880.0,105870.0,0.00029967]
[1737654973255,0.79697796,105880.0,105870.0,0.00029967]
[1737654973417,0.79823476,105880.0,105870.0,0.00029967]
[1737654973877,0.8273846,105880.0,105870.0,0.00029967]
[1737654974078,0.92473189,105880.0,105870.0,0.00029967]
[1737654974640,0.60153189,105880.0,105870.0,0.00029967]
[1737654974842,0.65143189,105880.0,105870.0,1e-08]
[1737654975041,0.65143189,105880.0,105860.0,0.00029967]
[1737654975042,0.40424631,105870.0,105860.0,0.00029967]
[1737654975290,0.5015936,105870.0,105860.0,1e-08]
[1737654975429,0.59894089,105870.0,105860.0,1e-08]
[1737654975633,0.59894089,105870.0,105840.0,0.00029988]
[1737654975634,0.0479,105850.0,105840.0,0.00025989]
[1737654975835,0.3997116,105850.0,105840.0,0.00025989]
[1737654976043,0.14474078,105870.0,105840.0,0.02025989]
[1737654976252,0.14474078,105870.0,105860.0,0.114456]
[1737654976253,0.00649479,105870.0,105860.0,0.114456]
[1737654976472,0.00849479,105870.0,105860.0,0.114456]
[1737654976689,0.00849479,105870.0,105860.0,0.094456]
[1737654977332,0.00849479,105870.0,105860.0,0.114456]
[1737654977550,0.00849479,105870.0,105860.0,0.26180329]
[1737654977551,0.00249479,105870.0,105860.0,0.26180329]
[1737654977697,0.00049479,105870.0,105860.0,0.41180329]
[1737654978103,0.00949479,105870.0,105860.0,0.41180329]
[1737654978421,0.00949479,105870.0,105860.0,0.41380329]
[1737654978584,0.00049479,105870.0,105860.0,0.41380329]
[1737654978788,0.00049479,105870.0,105860.0,0.34280329]
[1737654978988,0.00049479,105870.0,105860.0,0.41480329]
[1737654979844,0.00029946,105910.0,105900.0,0.114428]
[1737654980057,0.00029946,105910.0,105900.0,0.11457668]
[1737654981248,0.00029946,105910.0,105900.0,0.00014868]
[1737654981249,0.09471846,105910.0,105900.0,0.00014868]
[1737654981658,0.19206575,105910.0,105900.0,0.00014868]
[1737654981858,0.21506575,105910.0,105900.0,0.00014868]
[1737654982070,0.19206575,105910.0,105900.0,0.00114868]
[1737654982426,0.19206575,105910.0,105900.0,0.00014868]
[1737654982974,0.21506575,105910.0,105900.0,0.00014868]
[1737654983406,0.68826575,105910.0,105900.0,0.00014868]
[1737654983973,0.70736798,105910.0,105900.0,0.00014868]
[1737654984578,0.71036798,105910.0,105900.0,0.00014868]
[1737654984780,0.71036798,105910.0,105900.0,1e-08]
[1737654984997,0.71336798,105910.0,105900.0,1e-08]
[1737654985206,0.81071527,105910.0,105900.0,1e-08]
[1737654985366,0.71036798,105910.0,105900.0,1e-08]
[1737654985810,0.71936798,105910.0,105900.0,0.00100001]
[1737654986840,0.52726575,105910.0,105900.0,0.00100001]
[1737654987057,0.20406575,105910.0,105900.0,0.00100001]
[1737654987636,0.20106575,105910.0,105900.0,0.00100001]
[1737654988012,0.19306575,105910.0,105900.0,1e-08]
[1737654988213,0.39517537,105910.0,105900.0,1e-08]
[1737654988428,0.37106575,105910.0,105900.0,0.00100001]
[1737654988848,0.37206575,105910.0,105900.0,0.00100001]
[1737654990203,0.37206575,105910.0,105850.0,0.2376867]
[1737654990204,0.094456,105870.0,105850.0,0.4466237]
[1737654990416,0.188905,105880.0,105860.0,0.283387]
[1737654990634,0.283357,105880.0,105860.0,0.492307]
[1737654990859,0.472261,105880.0,105860.0,0.492307]
[1737654991221,0.09444,105890.0,105880.0,0.094446]
[1737654991431,0.283321,105890.0,105880.0,0.094446]
[1737654991631,0.09444,105890.0,105880.0,0.094446]
[1737654992272,0.283321,105890.0,105870.0,0.681146]
[1737654992492,0.283321,105890.0,105880.0,0.094446]
[1737654992697,0.801967,105900.0,105880.0,0.208886]
[1737654992898,0.801967,105900.0,105880.0,0.492205]
[1737654993105,0.801967,105900.0,105880.0,0.681087]
[1737654993314,0.801967,105900.0,105880.0,0.492201]
[1737654993523,0.613098,105900.0,105880.0,0.397763]
[1737654993698,0.613098,105900.0,105890.0,0.094437]
[1737654993902,0.801967,105900.0,105880.0,0.493206]
[1737654994066,0.094437,105890.0,105880.0,0.304323]
[1737654994436,0.094437,105890.0,105880.0,0.021]
[1737654994649,0.90738608,105900.0,105890.0,0.114437]
[1737654994650,0.01098308,105900.0,105890.0,0.114437]
[1737654994846,0.00029946,105910.0,105900.0,0.114428]